[Event "*** SCC Grand Prix: Titled Tuesday Blitz"]
[Site "Chess.com"]
[Date "2020.06.02"]
[Round "3"]
[White "dosto07"]
[Black "jorquerino"]
[Result "1/2-1/2"]
[WhiteElo "2115"]
[BlackElo "2322"]
[TimeControl "180+1"]
[EndTime "10:27:46 PDT"]
[Termination "Game drawn by repetition"]

1. e4 {[%clk 0:03:00.9]} 1... d5 {[%clk 0:02:59.4]} 2. exd5 {[%clk 0:02:58.2]}
2... Nf6 {[%clk 0:02:59.5]} 3. d4 {[%clk 0:02:56.8]} 3... Bg4 {[%clk 0:02:58.9]}
4. Nf3 {[%clk 0:02:55.2]} 4... Qxd5 {[%clk 0:02:57.6]} 5. Be2 {[%clk 0:02:52.1]}
5... Nc6 {[%clk 0:02:57.1]} 6. h3 {[%clk 0:02:44.9]} 6... Bxf3 {[%clk
0:02:54.9]} 7. Bxf3 {[%clk 0:02:42.9]} 7... Qd6 {[%clk 0:02:39.2]} 8. c3 {[%clk
0:02:38.2]} 8... O-O-O {[%clk 0:02:38.2]} 9. O-O {[%clk 0:02:20.2]} 9... e5
{[%clk 0:02:37]} 10. Bxc6 {[%clk 0:02:02.5]} 10... Qxc6 {[%clk 0:02:33.8]} 11.
Be3 {[%clk 0:02:02.3]} 11... Kb8 {[%clk 0:02:01.9]} 12. Nd2 {[%clk 0:02:00.1]}
12... exd4 {[%clk 0:01:57.7]} 13. Bxd4 {[%clk 0:01:59.5]} 13... Bc5 {[%clk
0:01:51.7]} 14. Nf3 {[%clk 0:01:48.4]} 14... Bxd4 {[%clk 0:01:44.2]} 15. Nxd4
{[%clk 0:01:48.1]} 15... Qb6 {[%clk 0:01:44.5]} 16. Qb3 {[%clk 0:01:36.7]} 16...
Qxb3 {[%clk 0:01:41.7]} 17. axb3 {[%clk 0:01:36.7]} 17... a6 {[%clk 0:01:37.5]}
18. b4 {[%clk 0:01:35.5]} 18... Rhe8 {[%clk 0:01:30.7]} 19. Rfe1 {[%clk
0:01:34.8]} 19... g6 {[%clk 0:01:29.5]} 20. f3 {[%clk 0:01:30.4]} 20... Nd5
{[%clk 0:01:26]} 21. Nb3 {[%clk 0:01:19.8]} 21... Nf4 {[%clk 0:01:22]} 22. Rad1
{[%clk 0:00:52.3]} 22... Rxd1 {[%clk 0:01:08.3]} 23. Rxd1 {[%clk 0:00:51.4]}
23... Kc8 {[%clk 0:01:04.6]} 24. Rd2 {[%clk 0:00:47.7]} 24... h5 {[%clk
0:01:03.5]} 25. h4 {[%clk 0:00:47.1]} 25... b6 {[%clk 0:00:54.2]} 26. Kf2 {[%clk
0:00:46.5]} 26... Re7 {[%clk 0:00:46.4]} 27. g3 {[%clk 0:00:46.4]} 27... Ne6
{[%clk 0:00:45]} 28. Nd4 {[%clk 0:00:42.6]} 28... Rd7 {[%clk 0:00:39.3]} 29. Ke3
{[%clk 0:00:39.9]} 29... Re7 {[%clk 0:00:39.1]} 30. Kf2 {[%clk 0:00:35]} 30...
Rd7 {[%clk 0:00:37.2]} 31. Ke3 {[%clk 0:00:34.3]} 31... Re7 {[%clk 0:00:37.4]}
32. Kf2 {[%clk 0:00:32.7]} 1/2-1/2

[Event "*** SCC Grand Prix: Titled Tuesday Blitz"]
[Site "Chess.com"]
[Date "2020.06.02"]
[Round "3"]
[White "suyu28"]
[Black "zajka-molotok"]
[Result "1-0"]
[WhiteElo "2582"]
[BlackElo "2377"]
[TimeControl "180+1"]
[EndTime "10:27:51 PDT"]
[Termination "suyu28 won by checkmate"]

1. d4 {[%clk 0:02:59.2]} 1... Nf6 {[%clk 0:02:58.2]} 2. c4 {[%clk 0:02:59.4]}
2... g6 {[%clk 0:02:58.1]} 3. Nc3 {[%clk 0:02:59.3]} 3... Bg7 {[%clk 0:02:58.1]}
4. e4 {[%clk 0:02:57.4]} 4... d6 {[%clk 0:02:57.9]} 5. Nf3 {[%clk 0:02:57.1]}
5... O-O {[%clk 0:02:57.9]} 6. g3 {[%clk 0:02:57.1]} 6... Nc6 {[%clk 0:02:47.5]}
7. Bg2 {[%clk 0:02:56.8]} 7... e5 {[%clk 0:02:46.8]} 8. d5 {[%clk 0:02:39.4]}
8... Ne7 {[%clk 0:02:41.5]} 9. O-O {[%clk 0:02:40]} 9... Nd7 {[%clk 0:02:33.1]}
10. Ne1 {[%clk 0:02:36.9]} 10... f5 {[%clk 0:02:32.8]} 11. Nd3 {[%clk 0:02:37]}
11... Nf6 {[%clk 0:02:28.8]} 12. f4 {[%clk 0:02:37.2]} 12... fxe4 {[%clk
0:02:23]} 13. Nxe4 {[%clk 0:02:36.8]} 13... Nxe4 {[%clk 0:02:22.4]} 14. Bxe4
{[%clk 0:02:37.7]} 14... exf4 {[%clk 0:02:15]} 15. Nxf4 {[%clk 0:02:33.5]} 15...
Nf5 {[%clk 0:02:08.2]} 16. Ne6 {[%clk 0:02:23.1]} 16... Bxe6 {[%clk 0:02:06.9]}
17. dxe6 {[%clk 0:02:24]} 17... c6 {[%clk 0:01:55]} 18. Bxf5 {[%clk 0:02:03.8]}
18... gxf5 {[%clk 0:01:51.5]} 19. Bf4 {[%clk 0:02:03.3]} 19... Qf6 {[%clk
0:01:16.2]} 20. Bxd6 {[%clk 0:01:44.2]} 20... Rfd8 {[%clk 0:01:10.1]} 21. c5
{[%clk 0:01:44.2]} 21... Qxe6 {[%clk 0:01:08.6]} 22. Qd3 {[%clk 0:01:38.4]}
22... Bxb2 {[%clk 0:00:54.6]} 23. Rae1 {[%clk 0:01:36.5]} 23... Qd5 {[%clk
0:00:41.2]} 24. Qxd5+ {[%clk 0:01:21.7]} 24... cxd5 {[%clk 0:00:42.1]} 25. Rxf5
{[%clk 0:01:21.6]} 25... Re8 {[%clk 0:00:34.8]} 26. Rd1 {[%clk 0:01:06.6]} 26...
d4 {[%clk 0:00:30.8]} 27. Rg5+ {[%clk 0:01:03.8]} 27... Kf7 {[%clk 0:00:20.4]}
28. Rf1+ {[%clk 0:01:03.4]} 28... Ke6 {[%clk 0:00:21]} 29. Re5+ {[%clk
0:01:03.4]} 29... Kd7 {[%clk 0:00:20.2]} 30. Rf7+ {[%clk 0:01:03.4]} 30... Kd8
{[%clk 0:00:14.9]} 31. Bc7+ {[%clk 0:01:02.5]} 31... Kc8 {[%clk 0:00:14.1]} 32.
Rxe8# {[%clk 0:01:02.1]} 1-0

[Event "*** SCC Grand Prix: Titled Tuesday Blitz"]
[Site "Chess.com"]
[Date "2020.06.02"]
[Round "3"]
[White "Godzillator"]
[Black "HunterBRR"]
[Result "1-0"]
[WhiteElo "2457"]
[BlackElo "2018"]
[TimeControl "180+1"]
[EndTime "10:27:55 PDT"]
[Termination "Godzillator won on time"]

1. d4 {[%clk 0:03:00.9]} 1... Nf6 {[%clk 0:02:59.2]} 2. c4 {[%clk 0:03:01.4]}
2... g6 {[%clk 0:02:59]} 3. Nc3 {[%clk 0:03:01.9]} 3... Bg7 {[%clk 0:02:58.9]}
4. e4 {[%clk 0:03:01.5]} 4... d6 {[%clk 0:02:58.6]} 5. Be2 {[%clk 0:03:02.2]}
5... O-O {[%clk 0:02:57.8]} 6. Bg5 {[%clk 0:03:02.9]} 6... c5 {[%clk 0:02:57.1]}
7. d5 {[%clk 0:03:02.9]} 7... h6 {[%clk 0:02:47.7]} 8. Bf4 {[%clk 0:03:02.2]}
8... e6 {[%clk 0:02:45.8]} 9. Qd2 {[%clk 0:03:02.2]} 9... exd5 {[%clk
0:02:45.1]} 10. exd5 {[%clk 0:03:02.6]} 10... Kh7 {[%clk 0:02:43.6]} 11. Nf3
{[%clk 0:03:02.7]} 11... Bg4 {[%clk 0:02:38.8]} 12. O-O {[%clk 0:03:02.5]} 12...
Re8 {[%clk 0:02:29.9]} 13. h3 {[%clk 0:02:59.9]} 13... Bxf3 {[%clk 0:02:19.9]}
14. Bxf3 {[%clk 0:02:59.1]} 14... a6 {[%clk 0:01:42.7]} 15. a4 {[%clk
0:02:57.6]} 15... Qc7 {[%clk 0:01:39.5]} 16. Rae1 {[%clk 0:02:53.8]} 16... Nbd7
{[%clk 0:01:39.3]} 17. b3 {[%clk 0:02:44.4]} 17... Ne5 {[%clk 0:01:36.8]} 18.
Bxe5 {[%clk 0:02:41.5]} 18... Rxe5 {[%clk 0:01:28.7]} 19. Rxe5 {[%clk
0:02:41.2]} 19... dxe5 {[%clk 0:01:29.6]} 20. Re1 {[%clk 0:02:40.4]} 20... Re8
{[%clk 0:01:28.5]} 21. Be2 {[%clk 0:02:31.5]} 21... e4 {[%clk 0:00:57.7]} 22.
Bd1 {[%clk 0:02:25.6]} 22... Qe5 {[%clk 0:00:51.3]} 23. Bc2 {[%clk 0:02:21.6]}
23... Ng4 {[%clk 0:00:25.5]} 24. hxg4 {[%clk 0:02:21.3]} 24... Qxc3 {[%clk
0:00:25.2]} 25. Qxc3 {[%clk 0:02:09.5]} 25... Bxc3 {[%clk 0:00:26.1]} 26. Re2
{[%clk 0:02:09.7]} 26... f5 {[%clk 0:00:22.9]} 27. gxf5 {[%clk 0:02:09.5]} 27...
gxf5 {[%clk 0:00:23.8]} 28. g4 {[%clk 0:02:07.6]} 28... Rg8 {[%clk 0:00:17]} 29.
f3 {[%clk 0:02:04]} 29... Bd4+ {[%clk 0:00:15]} 30. Kf1 {[%clk 0:02:03.5]} 30...
exf3 {[%clk 0:00:06.7]} 31. Bxf5+ {[%clk 0:02:02.9]} 31... Kg7 {[%clk
0:00:06.6]} 32. Re7+ {[%clk 0:02:01.1]} 32... Kf6 {[%clk 0:00:06.8]} 33. Re4
{[%clk 0:01:34.4]} 33... h5 {[%clk 0:00:05.2]} 34. d6 {[%clk 0:01:32.3]} 34...
h4 {[%clk 0:00:04.1]} 35. d7 {[%clk 0:01:29.8]} 35... h3 {[%clk 0:00:03.4]} 36.
Re8 {[%clk 0:01:29.8]} 36... h2 {[%clk 0:00:03]} 37. d8=Q+ {[%clk 0:01:29.5]}
37... Kg7 {[%clk 0:00:01.7]} 38. Rxg8+ {[%clk 0:01:21.7]} 38... Kh6 {[%clk
0:00:01.7]} 39. Qf8+ {[%clk 0:01:20.8]} 1-0

[Event "*** SCC Grand Prix: Titled Tuesday Blitz"]
[Site "Chess.com"]
[Date "2020.06.02"]
[Round "3"]
[White "gmyarick"]
[Black "JosefineHeinemann"]
[Result "0-1"]
[WhiteElo "2740"]
[BlackElo "2563"]
[TimeControl "180+1"]
[EndTime "10:27:56 PDT"]
[Termination "JosefineHeinemann won on time"]

1. e4 {[%clk 0:03:00.5]} 1... e5 {[%clk 0:02:57.6]} 2. Nf3 {[%clk 0:03:00.3]}
2... Nc6 {[%clk 0:02:57.4]} 3. Bb5 {[%clk 0:03:00.4]} 3... a6 {[%clk 0:02:56.8]}
4. Ba4 {[%clk 0:03:00.8]} 4... Nf6 {[%clk 0:02:57]} 5. d4 {[%clk 0:03:01.4]}
5... exd4 {[%clk 0:02:47.7]} 6. O-O {[%clk 0:03:01.3]} 6... Nxe4 {[%clk
0:02:39.3]} 7. Re1 {[%clk 0:02:56.1]} 7... d5 {[%clk 0:02:37.3]} 8. Nxd4 {[%clk
0:02:56.3]} 8... Bc5 {[%clk 0:02:26.2]} 9. Bxc6+ {[%clk 0:02:44]} 9... bxc6
{[%clk 0:02:23.9]} 10. f3 {[%clk 0:02:44.7]} 10... O-O {[%clk 0:02:16.4]} 11.
fxe4 {[%clk 0:02:44.4]} 11... dxe4 {[%clk 0:02:17.3]} 12. Be3 {[%clk 0:02:44.3]}
12... Qh4 {[%clk 0:02:06.3]} 13. Nf5 {[%clk 0:02:01.2]} 13... Bxe3+ {[%clk
0:01:54.8]} 14. Nxe3 {[%clk 0:02:00]} 14... f5 {[%clk 0:01:52.2]} 15. g3 {[%clk
0:01:42.9]} 15... Qf6 {[%clk 0:01:51.3]} 16. Nc3 {[%clk 0:01:34.6]} 16... Rb8
{[%clk 0:01:51.5]} 17. Qe2 {[%clk 0:01:10.5]} 17... Rxb2 {[%clk 0:01:44.6]} 18.
Qc4+ {[%clk 0:01:09.7]} 18... Kh8 {[%clk 0:01:33.1]} 19. Rad1 {[%clk 0:01:08.6]}
19... Qe5 {[%clk 0:01:27.4]} 20. Qd4 {[%clk 0:01:06.1]} 20... Qxd4 {[%clk
0:01:24.2]} 21. Rxd4 {[%clk 0:01:07]} 21... g5 {[%clk 0:01:24.6]} 22. Rf1 {[%clk
0:01:02.7]} 22... Kg7 {[%clk 0:01:19.9]} 23. Nc4 {[%clk 0:00:48.5]} 23... Rxc2
{[%clk 0:01:17.3]} 24. Na4 {[%clk 0:00:40.5]} 24... f4 {[%clk 0:01:12.8]} 25.
gxf4 {[%clk 0:00:33.1]} 25... Bh3 {[%clk 0:01:09.9]} 26. Re1 {[%clk 0:00:19.3]}
26... gxf4 {[%clk 0:01:05.1]} 27. Rdxe4 {[%clk 0:00:19]} 27... f3 {[%clk
0:01:01.9]} 28. Rf1 {[%clk 0:00:01.8]} 28... f2+ {[%clk 0:00:54.7]} 0-1

[Event "*** SCC Grand Prix: Titled Tuesday Blitz"]
[Site "Chess.com"]
[Date "2020.06.02"]
[Round "3"]
[White "Charlottemillard17"]
[Black "oykuince"]
[Result "0-1"]
[WhiteElo "1478"]
[BlackElo "2087"]
[TimeControl "180+1"]
[EndTime "10:27:56 PDT"]
[Termination "oykuince won by checkmate"]

1. e4 {[%clk 0:03:00.9]} 1... c5 {[%clk 0:02:59.9]} 2. Nf3 {[%clk 0:03:00.4]}
2... e6 {[%clk 0:02:59.9]} 3. d4 {[%clk 0:03:00.4]} 3... cxd4 {[%clk 0:03:00.4]}
4. Nxd4 {[%clk 0:03:01.3]} 4... Nc6 {[%clk 0:03:00.1]} 5. Nb3 {[%clk 0:02:59.9]}
5... Nf6 {[%clk 0:02:57.4]} 6. Nc3 {[%clk 0:02:59.9]} 6... Bb4 {[%clk
0:02:57.2]} 7. e5 {[%clk 0:02:56.9]} 7... Nxe5 {[%clk 0:02:56.7]} 8. Bd2 {[%clk
0:02:50.5]} 8... Be7 {[%clk 0:02:42.9]} 9. f4 {[%clk 0:02:45.6]} 9... Nc6 {[%clk
0:02:40.4]} 10. g4 {[%clk 0:02:40.4]} 10... d5 {[%clk 0:02:37.4]} 11. Bd3 {[%clk
0:02:30.8]} 11... d4 {[%clk 0:02:19.4]} 12. Ne2 {[%clk 0:02:21.1]} 12... Qd5
{[%clk 0:02:18.3]} 13. Rf1 {[%clk 0:01:56.4]} 13... Nxg4 {[%clk 0:02:06.1]} 14.
Ng3 {[%clk 0:01:33.9]} 14... Nxh2 {[%clk 0:02:01.8]} 15. Rf2 {[%clk 0:01:32.9]}
15... Bh4 {[%clk 0:01:48.3]} 16. Be4 {[%clk 0:01:02.5]} 16... Qd6 {[%clk
0:01:31.5]} 17. Bxc6+ {[%clk 0:00:41]} 17... bxc6 {[%clk 0:01:30]} 18. Rxh2
{[%clk 0:00:24.6]} 18... Bxg3+ {[%clk 0:01:28.2]} 19. Kf1 {[%clk 0:00:24.2]}
19... Bxh2 {[%clk 0:01:26.8]} 20. Qg4 {[%clk 0:00:22.3]} 20... Qd5 {[%clk
0:01:07.2]} 21. Kf2 {[%clk 0:00:16.7]} 21... e5 {[%clk 0:00:45.9]} 22. fxe5
{[%clk 0:00:15.3]} 22... Bxg4 {[%clk 0:00:44.7]} 23. Re1 {[%clk 0:00:08]} 23...
Qf3# {[%clk 0:00:42.3]} 0-1

[Event "*** SCC Grand Prix: Titled Tuesday Blitz"]
[Site "Chess.com"]
[Date "2020.06.02"]
[Round "3"]
[White "M1711"]
[Black "silverback96"]
[Result "0-1"]
[WhiteElo "2463"]
[BlackElo "2235"]
[TimeControl "180+1"]
[EndTime "10:27:57 PDT"]
[Termination "silverback96 won by resignation"]

1. d4 {[%clk 0:03:00.9]} 1... Nf6 {[%clk 0:02:59.2]} 2. Bg5 {[%clk 0:02:54.8]}
2... e6 {[%clk 0:02:58.9]} 3. e4 {[%clk 0:02:51.8]} 3... d5 {[%clk 0:02:59.4]}
4. e5 {[%clk 0:02:48]} 4... h6 {[%clk 0:02:59.6]} 5. Bc1 {[%clk 0:02:45.4]} 5...
Nfd7 {[%clk 0:02:58.6]} 6. f4 {[%clk 0:02:44.2]} 6... c5 {[%clk 0:02:58.3]} 7.
Nf3 {[%clk 0:02:43.4]} 7... Nc6 {[%clk 0:02:58.2]} 8. c3 {[%clk 0:02:43.6]} 8...
Qb6 {[%clk 0:02:50.3]} 9. g3 {[%clk 0:02:39.2]} 9... Be7 {[%clk 0:02:47.2]} 10.
Bh3 {[%clk 0:02:38.4]} 10... cxd4 {[%clk 0:02:46.6]} 11. cxd4 {[%clk 0:02:38]}
11... g5 {[%clk 0:02:47.2]} 12. Nc3 {[%clk 0:02:26.6]} 12... f5 {[%clk
0:02:41.3]} 13. exf6 {[%clk 0:02:25]} 13... Bxf6 {[%clk 0:02:41]} 14. Bxe6
{[%clk 0:02:16.3]} 14... Nxd4 {[%clk 0:02:37.4]} 15. Bxd5 {[%clk 0:02:03.6]}
15... Kd8 {[%clk 0:02:24.5]} 16. fxg5 {[%clk 0:01:48.9]} 16... hxg5 {[%clk
0:02:13.1]} 17. Nxd4 {[%clk 0:01:48.5]} 17... Bxd4 {[%clk 0:02:07.1]} 18. Bxg5+
{[%clk 0:01:47.9]} 18... Nf6 {[%clk 0:02:07.4]} 19. Qd2 {[%clk 0:01:03.7]} 19...
Re8+ {[%clk 0:02:07.1]} 20. Ne4 {[%clk 0:00:51.5]} 20... Bf5 {[%clk 0:01:52.4]}
21. Bxf6+ {[%clk 0:00:25.5]} 21... Qxf6 {[%clk 0:01:50.2]} 22. O-O-O {[%clk
0:00:10.6]} 22... Rxe4 {[%clk 0:01:19]} 23. Bxe4 {[%clk 0:00:09.1]} 23... Rc8+
{[%clk 0:01:19.6]} 24. Kb1 {[%clk 0:00:01.9]} 24... Bxe4+ {[%clk 0:01:19.8]} 25.
Ka1 {[%clk 0:00:02.6]} 25... Bxh1 {[%clk 0:01:15.5]} 26. Rxh1 {[%clk 0:00:03.2]}
26... Rc6 {[%clk 0:01:07.6]} 27. Rd1 {[%clk 0:00:03.1]} 27... Rd6 {[%clk
0:01:08.2]} 28. Qa5+ {[%clk 0:00:03]} 28... b6 {[%clk 0:01:04.4]} 29. Qxa7
{[%clk 0:00:02.2]} 29... Bxb2+ {[%clk 0:01:04.1]} 30. Kb1 {[%clk 0:00:01.8]}
30... Rxd1+ {[%clk 0:01:04.5]} 31. Kc2 {[%clk 0:00:02.3]} 31... Rc1+ {[%clk
0:01:04.8]} 32. Kb3 {[%clk 0:00:02.5]} 32... Qc3+ {[%clk 0:01:04.8]} 0-1

[Event "*** SCC Grand Prix: Titled Tuesday Blitz"]
[Site "Chess.com"]
[Date "2020.06.02"]
[Round "3"]
[White "picturesquecheck"]
[Black "Mikedannnn"]
[Result "0-1"]
[WhiteElo "2123"]
[BlackElo "2462"]
[TimeControl "180+1"]
[EndTime "10:27:58 PDT"]
[Termination "Mikedannnn won by checkmate"]

1. e4 {[%clk 0:03:00.9]} 1... c5 {[%clk 0:02:59.3]} 2. Nf3 {[%clk 0:02:55.1]}
2... e6 {[%clk 0:02:58.7]} 3. d4 {[%clk 0:02:53.9]} 3... cxd4 {[%clk 0:02:59.6]}
4. Nxd4 {[%clk 0:02:54.5]} 4... Nc6 {[%clk 0:03:00.3]} 5. Be2 {[%clk 0:02:53.6]}
5... Qc7 {[%clk 0:03:00.4]} 6. O-O {[%clk 0:02:53]} 6... Nf6 {[%clk 0:02:58.9]}
7. Nc3 {[%clk 0:02:53]} 7... a6 {[%clk 0:02:59]} 8. Be3 {[%clk 0:02:52.5]} 8...
Be7 {[%clk 0:02:59.2]} 9. f3 {[%clk 0:02:51.6]} 9... O-O {[%clk 0:02:58.5]} 10.
Kh1 {[%clk 0:02:51.3]} 10... d6 {[%clk 0:02:40.9]} 11. Qe1 {[%clk 0:02:49.9]}
11... b5 {[%clk 0:02:40.4]} 12. a3 {[%clk 0:02:49.2]} 12... Bb7 {[%clk
0:02:38.8]} 13. Qg3 {[%clk 0:02:49.1]} 13... Ne5 {[%clk 0:02:38.4]} 14. f4
{[%clk 0:02:31.2]} 14... Nc4 {[%clk 0:02:37.1]} 15. Bxc4 {[%clk 0:02:29.9]}
15... Qxc4 {[%clk 0:02:36.5]} 16. e5 {[%clk 0:02:22.6]} 16... dxe5 {[%clk
0:02:35.1]} 17. fxe5 {[%clk 0:02:22.3]} 17... Ne4 {[%clk 0:02:35.4]} 18. Nxe4
{[%clk 0:02:16.5]} 18... Bxe4 {[%clk 0:02:36.3]} 19. c3 {[%clk 0:02:09.9]} 19...
a5 {[%clk 0:02:27.3]} 20. Rf4 {[%clk 0:02:08]} 20... Qd5 {[%clk 0:01:34.6]} 21.
Raf1 {[%clk 0:01:51.7]} 21... Bg6 {[%clk 0:01:33.9]} 22. Rg4 {[%clk 0:01:41.2]}
22... b4 {[%clk 0:01:26]} 23. axb4 {[%clk 0:01:36.2]} 23... axb4 {[%clk
0:01:26.9]} 24. h4 {[%clk 0:01:34.1]} 24... h5 {[%clk 0:01:19.2]} 25. Rxg6
{[%clk 0:00:31.1]} 25... fxg6 {[%clk 0:01:20.1]} 26. Rxf8+ {[%clk 0:00:31.1]}
26... Rxf8 {[%clk 0:01:19.8]} 27. Qxg6 {[%clk 0:00:32]} 27... Rf1+ {[%clk
0:01:14.1]} 28. Bg1 {[%clk 0:00:19.6]} 28... Qxe5 {[%clk 0:01:10.9]} 29. Qe8+
{[%clk 0:00:19.1]} 29... Bf8 {[%clk 0:01:10.9]} 30. Nxe6 {[%clk 0:00:17.9]}
30... Qe1 {[%clk 0:00:56.9]} 31. Nxg7 {[%clk 0:00:08.6]} 31... Qxh4# {[%clk
0:00:53.2]} 0-1

[Event "*** SCC Grand Prix: Titled Tuesday Blitz"]
[Site "Chess.com"]
[Date "2020.06.02"]
[Round "3"]
[White "Funo09"]
[Black "ditkin25"]
[Result "1-0"]
[WhiteElo "2778"]
[BlackElo "2441"]
[TimeControl "180+1"]
[EndTime "10:27:59 PDT"]
[Termination "Funo09 won by resignation"]

1. e4 {[%clk 0:03:00.9]} 1... c6 {[%clk 0:02:58.1]} 2. Nc3 {[%clk 0:03:01.2]}
2... d5 {[%clk 0:02:57.8]} 3. Nf3 {[%clk 0:03:02.1]} 3... Nf6 {[%clk 0:02:57.7]}
4. e5 {[%clk 0:03:01.8]} 4... Ne4 {[%clk 0:02:58.3]} 5. Ne2 {[%clk 0:03:01.5]}
5... Qb6 {[%clk 0:02:58]} 6. d4 {[%clk 0:03:01.6]} 6... e6 {[%clk 0:02:58.5]} 7.
Ng3 {[%clk 0:03:01.8]} 7... c5 {[%clk 0:02:57.8]} 8. Bd3 {[%clk 0:02:59.6]} 8...
Nxg3 {[%clk 0:02:57.9]} 9. hxg3 {[%clk 0:03:00.5]} 9... cxd4 {[%clk 0:02:58.3]}
10. a3 {[%clk 0:03:00.5]} 10... Nc6 {[%clk 0:02:56.3]} 11. b4 {[%clk 0:02:59.5]}
11... Bd7 {[%clk 0:02:51.5]} 12. Bf4 {[%clk 0:02:57.8]} 12... Be7 {[%clk
0:02:49.8]} 13. Kf1 {[%clk 0:02:55.8]} 13... f6 {[%clk 0:02:35.8]} 14. Qe2
{[%clk 0:02:50]} 14... O-O-O {[%clk 0:02:29.5]} 15. Rc1 {[%clk 0:02:44.1]} 15...
h5 {[%clk 0:02:14.5]} 16. c3 {[%clk 0:02:30.3]} 16... fxe5 {[%clk 0:01:47.2]}
17. Nxe5 {[%clk 0:02:28.8]} 17... g5 {[%clk 0:01:25.6]} 18. Bd2 {[%clk
0:02:00.8]} 18... Kb8 {[%clk 0:00:57.3]} 19. Nf7 {[%clk 0:01:52.4]} 19... Rhf8
{[%clk 0:00:46.5]} 20. Nxd8 {[%clk 0:01:51.9]} 20... Bxd8 {[%clk 0:00:47.3]} 21.
Rxh5 {[%clk 0:01:50.1]} 21... g4 {[%clk 0:00:45.2]} 22. c4 {[%clk 0:01:43.3]}
22... dxc4 {[%clk 0:00:42]} 23. Rxc4 {[%clk 0:01:42.1]} 23... Bc7 {[%clk
0:00:38.7]} 24. Kg1 {[%clk 0:01:41.8]} 24... e5 {[%clk 0:00:21.7]} 25. Rh7
{[%clk 0:01:41.5]} 25... Be6 {[%clk 0:00:21.4]} 26. Rc5 {[%clk 0:01:42.1]} 26...
Rf7 {[%clk 0:00:15.3]} 27. Rh8+ {[%clk 0:01:27.1]} 27... Nd8 {[%clk 0:00:14.5]}
28. Bg5 {[%clk 0:01:19.6]} 28... a6 {[%clk 0:00:13.4]} 29. Bxd8 {[%clk
0:01:17.6]} 29... Bxd8 {[%clk 0:00:14.3]} 30. Qxe5+ {[%clk 0:01:17.4]} 30... Ka7
{[%clk 0:00:14.8]} 31. Rxd8 {[%clk 0:01:17]} 31... Qxd8 {[%clk 0:00:14.1]} 32.
Qxe6 {[%clk 0:01:17.1]} 32... Qf8 {[%clk 0:00:13.6]} 33. Rc2 {[%clk 0:01:16.5]}
33... Re7 {[%clk 0:00:13.8]} 34. Qxg4 {[%clk 0:01:16.3]} 34... Re1+ {[%clk
0:00:13.9]} 35. Bf1 {[%clk 0:01:13.5]} 35... d3 {[%clk 0:00:13.8]} 36. Qd4+
{[%clk 0:01:13.4]} 36... Ka8 {[%clk 0:00:14.2]} 37. Qxd3 {[%clk 0:01:13.8]}
37... Qh6 {[%clk 0:00:13.7]} 38. Rc8+ {[%clk 0:01:09.8]} 38... Ka7 {[%clk
0:00:13.5]} 39. Qd4+ {[%clk 0:01:10]} 39... Qb6 {[%clk 0:00:12.9]} 40. Ra8+
{[%clk 0:01:09.5]} 40... Kxa8 {[%clk 0:00:13]} 41. Qxb6 {[%clk 0:01:10.4]} 1-0

[Event "*** SCC Grand Prix: Titled Tuesday Blitz"]
[Site "Chess.com"]
[Date "2020.06.02"]
[Round "3"]
[White "temus_galaktionov"]
[Black "AttilaTurzo"]
[Result "1-0"]
[WhiteElo "2728"]
[BlackElo "2479"]
[TimeControl "180+1"]
[EndTime "10:28:00 PDT"]
[Termination "temus_galaktionov won by resignation"]

1. d4 {[%clk 0:03:00.9]} 1... Nf6 {[%clk 0:02:58.4]} 2. Nf3 {[%clk 0:03:01.2]}
2... g6 {[%clk 0:02:58.5]} 3. c4 {[%clk 0:03:01.1]} 3... Bg7 {[%clk 0:02:57.7]}
4. Nc3 {[%clk 0:03:01.3]} 4... d5 {[%clk 0:02:58]} 5. cxd5 {[%clk 0:03:02.2]}
5... Nxd5 {[%clk 0:02:58.9]} 6. e4 {[%clk 0:03:02]} 6... Nxc3 {[%clk 0:02:59.3]}
7. bxc3 {[%clk 0:03:02.9]} 7... O-O {[%clk 0:02:59.7]} 8. Be3 {[%clk 0:03:03.8]}
8... c5 {[%clk 0:02:59.5]} 9. Qd2 {[%clk 0:03:04.4]} 9... Qa5 {[%clk 0:02:55]}
10. Rc1 {[%clk 0:03:03.8]} 10... cxd4 {[%clk 0:02:52.5]} 11. cxd4 {[%clk
0:03:04.7]} 11... Qxd2+ {[%clk 0:02:53]} 12. Kxd2 {[%clk 0:03:05.3]} 12... b6
{[%clk 0:02:53.5]} 13. Rc7 {[%clk 0:02:59.4]} 13... e6 {[%clk 0:02:48.6]} 14.
Bd3 {[%clk 0:02:58.5]} 14... Nd7 {[%clk 0:02:35.6]} 15. e5 {[%clk 0:02:52.3]}
15... f5 {[%clk 0:02:25.3]} 16. Bg5 {[%clk 0:02:46.5]} 16... Rf7 {[%clk
0:02:02.9]} 17. h4 {[%clk 0:02:37.1]} 17... Nxe5 {[%clk 0:01:55.1]} 18. Rxc8+
{[%clk 0:02:36.8]} 18... Rxc8 {[%clk 0:01:55.6]} 19. Nxe5 {[%clk 0:02:27.3]}
19... Bxe5 {[%clk 0:01:41.6]} 20. dxe5 {[%clk 0:02:28.2]} 20... Rd7 {[%clk
0:01:40.2]} 21. Rd1 {[%clk 0:02:28.5]} 21... Kg7 {[%clk 0:01:37.2]} 22. Bf6+
{[%clk 0:02:21.5]} 22... Kf7 {[%clk 0:01:36.5]} 23. h5 {[%clk 0:02:19.2]} 23...
Rc5 {[%clk 0:01:31.2]} 24. hxg6+ {[%clk 0:02:13.7]} 24... hxg6 {[%clk
0:01:19.6]} 25. Rh1 {[%clk 0:02:13]} 25... Rcd5 {[%clk 0:01:18.8]} 26. Rh7+
{[%clk 0:02:11.9]} 26... Kg8 {[%clk 0:01:18.6]} 27. Rxd7 {[%clk 0:02:12.3]}
27... Rxd7 {[%clk 0:01:18.9]} 28. Kc3 {[%clk 0:02:08.9]} 28... Rc7+ {[%clk
0:01:15.5]} 29. Kb3 {[%clk 0:02:07]} 29... Kf7 {[%clk 0:01:13.9]} 30. Bc4 {[%clk
0:02:02.3]} 30... Rd7 {[%clk 0:01:10.4]} 31. Bg5 {[%clk 0:02:02.8]} 31... Rd1
{[%clk 0:01:08.7]} 32. Be3 {[%clk 0:02:00.6]} 32... Rg1 {[%clk 0:01:06.8]} 33.
g3 {[%clk 0:02:00.2]} 33... Rb1+ {[%clk 0:01:06.3]} 34. Kc2 {[%clk 0:01:59.8]}
34... Rb4 {[%clk 0:01:01.9]} 35. Kc3 {[%clk 0:01:59.3]} 35... Rb1 {[%clk
0:01:01.2]} 36. Bd3 {[%clk 0:01:55.4]} 36... Ra1 {[%clk 0:00:59.6]} 37. Kb2
{[%clk 0:01:55]} 37... Rd1 {[%clk 0:00:59.7]} 38. Bc4 {[%clk 0:01:53.2]} 38...
Re1 {[%clk 0:00:56.9]} 39. a4 {[%clk 0:01:52.2]} 39... Rh1 {[%clk 0:00:49.8]}
40. Kc3 {[%clk 0:01:47.9]} 40... Ra1 {[%clk 0:00:45.1]} 41. Bb3 {[%clk 0:01:46]}
41... Ke7 {[%clk 0:00:41]} 42. Kc4 {[%clk 0:01:42.5]} 42... Rb1 {[%clk
0:00:39.1]} 43. Bc2 {[%clk 0:01:41.6]} 43... Rb2 {[%clk 0:00:38.9]} 44. Kc3
{[%clk 0:01:41.5]} 44... Ra2 {[%clk 0:00:37.3]} 45. Bc1 {[%clk 0:01:35.8]} 45...
Kf7 {[%clk 0:00:30.6]} 46. Kb3 {[%clk 0:01:35.4]} 46... Rxc2 {[%clk 0:00:21.9]}
47. Kxc2 {[%clk 0:01:34.6]} 47... a6 {[%clk 0:00:20.9]} 48. Be3 {[%clk
0:01:33.5]} 48... b5 {[%clk 0:00:21.3]} 49. axb5 {[%clk 0:01:33.7]} 49... axb5
{[%clk 0:00:22.2]} 50. Kc3 {[%clk 0:01:34.6]} 50... Ke7 {[%clk 0:00:21.3]} 51.
Kb4 {[%clk 0:01:34.3]} 51... Kd7 {[%clk 0:00:22.2]} 52. Kxb5 {[%clk 0:01:34.5]}
52... Ke7 {[%clk 0:00:22.7]} 53. Kc6 {[%clk 0:01:34.2]} 53... Kf7 {[%clk
0:00:23.6]} 54. Bg5 {[%clk 0:01:33.7]} 1-0